[Event "1st FIDE Olympiad DIS 2023"]
[Site "Belgrade"]
[Date "2023.02.04"]
[Round "6.14"]
[White "Larduet Despaigne, Carlos"]
[Black "Mamarajabov, Sardorbek"]
[Result "1/2-1/2"]
[ECO "E01"]
[WhiteElo "2277"]
[BlackElo "1712"]
[Annotator "TA"]
[PlyCount "55"]
[EventDate "2023.01.30"]
[EventType "team-tourn"]
[EventCountry "SRB"]
[SourceTitle "playchess.com"]
[Source "ChessBase"]
[SourceQuality "1"]
[WhiteTeam "Cuba"]
[BlackTeam "Uzbekistan"]
[WhiteTeamCountry "CUB"]
[BlackTeamCountry "UZB"]
[TimeControl "40/5400+30:1800+30"]

{[%evp 16,55,67,10,46,46,58,45,61,56,47,44,46,43,45,11,27,32,34,33,106,97,99,65,77,72,76,81,87,84,92,-22,-46,-33,-37,-122,-106,-112,-113,-183,-97,-117]} 1. d4 {[%emt 0:00:04]} d5 {[%emt 0:01:06]} 2. Nf3 {[%emt 0:00:18]} Nf6 {[%emt 0:00:24]} 3. c4 {[%emt 0:00:40]} c6 {[%emt 0:00:17]} 4. Qc2 {[%emt 0:00:41]} e6 {[%emt 0:01:46]} 5. g3 {[%emt 0:00:27]} Nbd7 {[%emt 0:00:10]} 6. Bg2 {[%emt 0:00:13]} dxc4 {[%emt 0:00:52]} 7. Qxc4 {[%emt 0:00:12]} Bd6 {[%emt 0:04:26]} 8. O-O {[%emt 0:00:41]} O-O {[%emt 0:00:18]} 9. Nc3 {[%emt 0:05:33]} ({Better is} 9. Bf4 $14 Bxf4 10. gxf4) 9... h6 {[%emt 0:05:09] E01: Catalan: Early deviations.} 10. h3 {[%emt 0:03:59]} Qe7 {[%emt 0:00:50]} 11. e4 {[%emt 0:00:23] [#] And now e5 would win.} e5 {[%emt 0:00:08] White is slightly better.} 12. Be3 {[%emt 0:01:16] [#] White is more active.} Nb6 $146 {[%emt 0:12:33]} ({Predecessor:} 12... Re8 13. Rfe1 Bc7 14. Rad1 exd4 15. Nxd4 Nf8 16. f4 Nh5 17. Bf2 Ne6 18. Nxe6 Bxe6 {½-½ Marszalek,M (2250)-Zawadzki,S (2416) POL-chT U19 33rd 2002 (7)}) 13. Qe2 {[%emt 0:01:52]} exd4 {[%emt 0:14:12]} 14. Nxd4 {[%emt 0:00:13]} Bb4 {[%emt 0:03:11]} 15. Qc2 {[%emt 0:07:59]} Bxc3 {[%emt 0:04:22]} (15... Nc4 $5 {[%cal Rc4e3]}) 16. bxc3 {[%emt 0:00:30][%cal Bb2c3,Bc3c4,Bc4c5][%mdl 32]} Nc4 {[%emt 0:00:18]} 17. Bf4 {[%emt 0:01:02]} Ne5 {[%emt 0:11:37]} (17... Re8 $14) 18. Rfe1 $16 {[%emt 0:01:27]} Re8 {[%emt 0:04:01]} 19. Rab1 {[%emt 0:01:39]} Qc5 {[%emt 0:00:18]} 20. Nb3 {[%emt 0:11:25]} Qa3 {[%emt 0:01:07]} 21. c4 {[%emt 0:04:10]} a5 {[%emt 0:04:07]} 22. c5 {[%emt 0:24:36] Hoping for Re3.} a4 {[%emt 0:05:01] [#]} 23. Nc1 {[%emt 0:00:03]} (23. Nd2 $1 $16 {Re3 is the strong threat.} Qd3 24. Qb2) 23... Nf3+ $11 {[%emt 0:01:20]} 24. Bxf3 {[%emt 0:01:09]} Qxf3 {[%emt 0:00:10]} 25. Qd3 {[%emt 0:03:38]} ({White has to play} 25. Re3 $15 Qh5 26. f3) 25... Qh5 {[%emt 0:00:56]} 26. g4 {[%emt 0:01:03]} Qxc5 {[%emt 0:03:47]} 27. a3 {[%emt 0:06:04]} (27. Be3 $17 {was called for.} Qa5 28. Bd2) 27... Qa5 {[%emt 0:06:54]} (27... h5 $19 28. Be3 Qe5) 28. Bd2 {[%emt 0:02:41] Weighted Error Value: White=0.30/Black=0.13 (very precise)} 1/2-1/2

[Event "1st FIDE Olympiad DIS 2023"]
[Site "Belgrade"]
[Date "2023.02.04"]
[Round "6.14"]
[White "Nkhupi Robert"]
[Black "CHIKAFU, ONAI"]
[Result "1/2-1/2"]
[ECO "C17"]
[WhiteElo "1738"]
[BlackElo "1494"]
[Annotator "NA RC COMBH"]
[PlyCount "84"]
[EventDate "2023.01.30"]
[EventType "team-tourn"]
[EventCountry "SRB"]
[SourceTitle "playchess.com"]
[Source "ChessBase"]
[SourceQuality "1"]
[WhiteTeam "Zambia"]
[BlackTeam "Zimbabwe"]
[WhiteTeamCountry "ZAM"]
[BlackTeamCountry "ZIM"]
[TimeControl "40/5400+30:1800+30"]

1. e4 {[%emt 0:00:26]} e6 {[%emt 0:00:48]} 2. d4 {[%emt 0:03:04]} d5 {[%emt 0:00:26]} 3. Nc3 {[%emt 0:03:12]} Bb4 {[%emt 0:01:33]} 4. e5 {[%emt 0:02:57]} c5 {[%emt 0:00:50]} 5. Be3 {[%emt 0:07:28]} Nc6 {[%emt 0:00:28]} 6. Bb5 {[%emt 0:04:53]} cxd4 {[%emt 0:01:45]} 7. Bxd4 {[%emt 0:02:04]} Qh4 {[%emt 0:00:41]} 8. Nf3 {[%emt 0:00:28]} Qe4+ {[%emt 0:01:00]} 9. Kf1 {[%emt 0:02:31]} Bxc3 {[%emt 0:03:00]} 10. bxc3 {[%emt 0:00:03]} f5 {[%emt 0:01:07]} 11. h3 {[%emt 0:01:33]} Qf4 {[%emt 0:00:47]} 12. Be3 {[%emt 0:03:53]} Qe4 {[%emt 0:00:49]} 13. a4 {[%emt 0:00:10]} d4 {[%emt 0:01:35]} 14. cxd4 {[%emt 0:04:27]} a6 {[%emt 0:01:08]} 15. Bd3 {[%emt 0:01:36]} Qd5 {[%emt 0:00:35]} 16. c4 {[%emt 0:00:32]} Qd8 {[%emt 0:00:14]} 17. g3 {[%emt 0:01:51]} Nge7 {[%emt 0:00:49]} 18. Qd2 {[%emt 0:07:06]} O-O {[%emt 0:01:56]} 19. a5 {[%emt 0:00:21]} h6 {[%emt 0:02:10]} 20. h4 {[%emt 0:10:29]} Qe8 {[%emt 0:01:59]} 21. h5 {[%emt 0:02:35]} Qf7 {[%emt 0:01:20]} 22. Ke2 {[%emt 0:00:32]} Kh8 {[%emt 0:02:09]} 23. Bc2 {[%emt 0:02:46]} Bd7 {[%emt 0:04:04]} 24. Rad1 {[%emt 0:00:34]} Rad8 {[%emt 0:02:01]} 25. d5 {[%emt 0:01:33]} Nb8 {[%emt 0:01:53]} 26. Bb6 {[%emt 0:00:55]} Rc8 {[%emt 0:01:29]} 27. Rh4 {[%emt 0:00:39]} exd5 {[%emt 0:02:33]} 28. cxd5 {[%emt 0:08:09]} Nxd5 {[%emt 0:00:35]} 29. Nd4 {[%emt 0:00:45]} Nc3+ {[%emt 0:00:21]} 30. Ke1 {[%emt 0:01:35]} Nxd1 {[%emt 0:00:21]} 31. Kxd1 {[%emt 0:02:35]} Qc4 {[%emt 0:01:15]} 32. Bd3 {[%emt 0:04:46]} Qd5 {[%emt 0:03:06]} 33. f4 {[%emt 0:00:35]} Ba4+ {[%emt 0:00:38]} 34. Ke1 {[%emt 0:00:44]} Nd7 {[%emt 0:00:57]} 35. Nxf5 {[%emt 0:04:04]} Nxb6 {[%emt 0:00:17]} 36. Ne7 {[%emt 0:01:00]} Qd4 {[%emt 0:00:17]} 37. Ng6+ {[%emt 0:00:38]} Kg8 {[%emt 0:01:21]} 38. axb6 {[%emt 0:01:49]} Qg1+ {[%emt 0:00:29]} 39. Ke2 {[%emt 0:04:30]} Qg2+ {[%emt 0:00:30]} 40. Ke1 {[%emt 0:01:09]} Qxg3+ {[%emt 0:00:21]} 41. Kf1 {[%emt 0:30:21]} Rfe8 {[%emt 0:30:36]} 42. Qa2+ {[%emt 0:00:44]} Kh7 {[%emt 0:05:18]} 1/2-1/2

[Event "1st FIDE Olympiad DIS 2023"]
[Site "Belgrade"]
[Date "2023.02.04"]
[Round "6.15"]
[White "Shayusupov, Marsel"]
[Black "Interian Rodriguez, Alberto D."]
[Result "1-0"]
[ECO "E60"]
[WhiteElo "1580"]
[BlackElo "2082"]
[Annotator "TA"]
[PlyCount "67"]
[EventDate "2023.01.30"]
[EventType "team-tourn"]
[EventCountry "SRB"]
[SourceTitle "playchess.com"]
[Source "ChessBase"]
[SourceQuality "1"]
[WhiteTeam "Uzbekistan"]
[BlackTeam "Cuba"]
[WhiteTeamCountry "UZB"]
[BlackTeamCountry "CUB"]
[TimeControl "40/5400+30:1800+30"]

{[%evp 9,67,35,43,32,56,50,56,59,72,65,81,75,115,67,133,137,129,49,104,93,112,95,98,97,113,105,122,107,164,162,154,168,181,179,206,199,200,178,190,183,204,204,208,161,234,196,196,198,200,198,674,679,2208,1435,2281,2034,29989,29990,29990,29990]} 1. d4 {[%emt 0:00:06]} Nf6 {[%emt 0:00:02]} 2. c4 {[%emt 0:00:06]} g6 {[%emt 0:00:05]} 3. h4 {[%emt 0:00:05]} Bg7 {[%emt 0:00:41]} 4. Nc3 {[%emt 0:00:05]} d6 {[%emt 0:00:34]} 5. e4 {[%emt 0:00:06]} h5 {[%emt 0:03:42]} 6. f3 {[%emt 0:01:06] E60: King's Indian: Unusual lines and Fianchetto Variation without Nc3.} Nc6 {[%emt 0:05:30]} 7. Be3 {[%emt 0:00:36]} O-O {[%emt 0:03:39]} 8. Qd2 $1 {[%emt 0:00:39] [#] White is slightly better.} e5 $146 {[%emt 0:00:13] White must now prevent ...exd4.} ({Predecessor:} 8... Bd7 9. O-O-O a6 10. Kb1 Rb8 11. Bh6 Na7 12. g4 hxg4 13. h5 Nxh5 14. Rxh5 Bxh6 15. Rxh6 {1-0 Soto,C (2126)-Ramos Arboleda,D (1603) Medellin Easter op 7th 2017 (6)}) 9. d5 {[%emt 0:00:02]} Ne7 {[%emt 0:08:42]} 10. Be2 {[%emt 0:00:32]} Nh7 {[%emt 0:01:02]} 11. g4 {[%emt 0:00:22]} (11. O-O-O $16) 11... f5 {[%emt 0:02:23]} (11... Nf6 $14) 12. gxf5 {[%emt 0:02:28]} gxf5 {[%emt 0:00:06]} 13. Bg5 {[%emt 0:00:01] White is more active.} (13. Nh3 $16) 13... f4 {[%emt 0:03:16]} (13... Nxg5 $1 $14 14. Qxg5 Rf6) 14. O-O-O $16 {[%emt 0:00:52]} Bf6 {[%emt 0:14:28]} 15. Nh3 {[%emt 0:00:46]} Bxh3 {[%emt 0:00:23]} 16. Rxh3 {[%emt 0:00:02]} Ng6 {[%emt 0:00:01]} 17. Rg1 {[%emt 0:00:27] Black is weak on the light squares} Kf7 {[%emt 0:00:37]} 18. Rh2 {[%emt 0:01:09]} Bxg5 {[%emt 0:20:15]} (18... Rg8 $16) 19. hxg5 $18 {[%emt 0:00:20]} h4 {[%emt 0:00:10]} 20. Bf1 {[%emt 0:01:06][%cal Be2f1,Bf1h3,Bh3f5][%mdl 32]} Rh8 {[%emt 0:01:47]} (20... Nxg5 $2 21. Qg2 $18) 21. Bh3 {[%emt 0:02:13]} Kg7 {[%emt 0:00:48]} 22. Qg2 {[%emt 0:00:24]} Qe7 {[%emt 0:01:46]} 23. Bf5 {[%emt 0:00:17]} Nhf8 {[%emt 0:00:17]} 24. Qg4 {[%emt 0:00:13]} a6 {[%emt 0:00:38]} 25. Nd1 {[%emt 0:00:37][%cal Bc3d1,Bd1f2,Bf2g4][%mdl 32]} b5 {[%emt 0:00:18]} 26. Rgh1 {[%emt 0:08:31]} Rb8 {[%emt 0:03:04]} (26... bxc4 $142 27. Rc2 Qf7 28. Rxc4 c5) 27. Nf2 {[%emt 0:02:49][%cal Rh2h4] aiming for Rxh4.} bxc4 {[%emt 0:00:06][%cal Oc4c3] [#]} 28. Rxh4 $1 {[%emt 0:00:30]} Nxh4 {[%emt 0:07:40]} 29. Rxh4 {[%emt 0:00:12]} Rxh4 {[%emt 0:03:08]} (29... Ne6 30. Rxh8 (30. Bxe6 Rxh4 {[%mdl 64] Remove Defender} 31. Qxh4 Rh8 $18) 30... Rxh8 31. Bxe6 (31. dxe6 c3 $14) 31... Qe8) 30. Qxh4 {[%emt 0:00:08]} c3 {[%emt 0:03:04]} 31. b3 {[%emt 0:02:50]} c6 {[%emt 0:00:44]} 32. Ng4 {[%emt 0:06:51]} (32. dxc6 d5 $16) 32... Qa7 {[%emt 0:00:54]} 33. Qh6+ {[%emt 0:00:09]} Kf7 {[%emt 0:00:00] [#]} 34. Bg6+ $1 {[%emt 0:00:01][%mdl 576] Deflection. Ingenious play by Shayusupov!   Weighted Error Value: White=0.13 (very precise) /Black=0.64} 1-0